fUSD/lending_fUSD_20251221
["ID","MTS","AMOUNT","RATE_DAILY","PERIOD"]
[399428697,1766344243754,-214.0,0.000169,2]
[399428699,1766344243763,-10000.0,0.000169,2]
[399428701,1766344243772,-23351.15640606,0.000169,2]
[399428702,1766344243782,-1173.6239593,0.000169,2]
[399428703,1766344243791,-31760.83904941,0.000169,2]
[399428704,1766344243802,-203.57455078,0.000169,2]
[399428705,1766344243812,-1222.0,0.0001691,2]
[399428706,1766344243822,-500.0,0.0001693,2]
[399428707,1766344243831,-151.0,0.0001693,2]
[399428708,1766344243841,-3500.0,0.00016931,2]
[399428709,1766344243850,-2577.26528562,0.00016931,2]
[399428710,1766344243860,-954.77156402,0.00016931,2]
[399428711,1766344243870,-8332.0,0.00016966,2]
[399428712,1766344243880,-219.80510971,0.00016973,2]
[399428713,1766344243890,-52741.43,0.00016986,2]
[399428714,1766344243902,-757.15342507,0.0001699,2]
[399428715,1766344243917,-757.15342507,0.0001699,2]
[399428716,1766344243927,-1222.0,0.00016995,2]
[399428717,1766344243937,-151.0,0.00016997,2]
[399428718,1766344243947,-509.93,0.00016999,2]
[399428719,1766344243958,-300.0,0.00016999,2]
[399428720,1766344243967,-666.0,0.00016999,2]
[399428721,1766344243977,-300.0,0.00016999,2]
[399428722,1766344243988,-666.0,0.00016999,2]
[399428723,1766344243997,-2631074.39819767,0.00017,2]
[399428724,1766344244006,-1915939.20114849,0.00017,2]
[399428725,1766344244462,-251.00000008,0.00017,2]
[399428726,1766344244493,-334.24056633,0.00016258,2]
[399428727,1766344244502,-48.20663332,0.00017,2]
[399428728,1766344244512,-857.81402166,0.00017,2]
[399428729,1766344244524,-343.451108,0.00017,2]
[399428730,1766344245785,-0.02179833,0.00017,2]
[399428731,1766344245797,-795.93,0.00017,2]
[399428732,1766344245808,-6258.7835539,0.00017,2]
[399428733,1766344245963,-6561.4500775,9.578e-05,2]
[399428734,1766344246049,-66.16305995,9.578e-05,2]
[399428735,1766344246060,-3808.28684266,9.578e-05,2]
[399428736,1766344246076,-841.0,9.578e-05,2]
[399428737,1766344246091,-355.434006,9.578e-05,2]
[399428738,1766344246103,-1622.07230364,9.578e-05,2]
[399428739,1766344246291,-238.02179816,9.578e-05,2]
[399428740,1766344246322,-904.64662748,9.578e-05,2]
[399428741,1766344246341,-19097.88898461,9.578e-05,2]
[399428742,1766344246351,-500.0,9.999e-05,2]
[399428743,1766344246361,-216.2081042,9.999e-05,2]
[399428744,1766344246371,-500.0,0.00013698,2]
[399428745,1766344246380,-500.0,0.00013698,2]
[399428746,1766344246390,-560458.04240144,0.00017,2]
[399428747,1766344246402,-406805.4068244,0.00017,2]
[399428748,1766344246411,-1000.0,0.00017,2]
[399428749,1766344246421,-1000.0,0.00017,2]
[399428750,1766344246430,-1000.0,0.00017,2]
[399428751,1766344246439,-1000.0,0.00017,2]
[399428752,1766344246448,-1000.0,0.00017,2]
[399428753,1766344246458,-1000.0,0.00017,2]
[399428754,1766344246467,-1000.0,0.00017,2]
[399428755,1766344246476,-1000.0,0.00017,2]
[399428756,1766344246486,-1000.0,0.00017,2]
[399428757,1766344246495,-1000.0,0.00017,2]
[399428758,1766344246504,-1000.0,0.00017,2]
[399428759,1766344246514,-1000.0,0.00017,2]
[399428760,1766344246523,-1000.0,0.00017,2]
[399428761,1766344246532,-1000.0,0.00017,2]
[399428762,1766344246541,-1000.0,0.00017,2]
[399428763,1766344246551,-1000.0,0.00017,2]
[399428764,1766344246560,-1000.0,0.00017,2]
[399428765,1766344246570,-1000.0,0.00017,2]
[399428766,1766344246580,-284.76463519,0.00017,2]
[399428767,1766344246592,-715.23536481,0.00017,2]
[399428768,1766344246603,-1000.0,0.00017,2]
[399428769,1766344246612,-1000.0,0.00017,2]
[399428770,1766344246621,-1000.0,0.00017,2]
[399428771,1766344246630,-1000.0,0.00017,2]
[399428772,1766344246639,-1000.0,0.00017,2]
[399428773,1766344246649,-1000.0,0.00017,2]
[399428774,1766344246658,-1000.0,0.00017,2]
[399428775,1766344246667,-1000.0,0.00017,2]
[399428776,1766344246676,-1074.23710306,0.00017,2]
[399428777,1766344246686,-64294.3884998,0.00017,2]
[399428778,1766344246699,-972.51393802,0.00017,2]
[399428779,1766344246710,-4851.58305577,0.00017,2]
[399428780,1766344246721,-29412.1117943,0.00017,2]
[399428781,1766344246732,-301.97504289,0.00017,2]
[399428782,1766344246743,-744.66170041,0.00017,2]
[399428783,1766344246755,-4712.0,0.00017,2]
[399428784,1766344246767,-1688.54009619,0.00017,2]
[399428785,1766344258413,231.0,0.00033151,30]
[399428786,1766344258698,231.0,0.00034521,30]
[399428797,1766344278990,1000.0,9.578e-05,2]
[399428798,1766344297891,2500.0,9.578e-05,2]
[399428799,1766344325197,500.0,9.999e-05,2]
[399428800,1766344325240,500.0,9.999e-05,2]
[399428801,1766344325284,500.0,9.999e-05,2]
[399428802,1766344325336,500.0,9.999e-05,2]
[399428803,1766344325382,500.0,9.999e-05,2]
[399428804,1766344325428,500.0,9.999e-05,2]
[399428805,1766344325472,251.50586873,9.999e-05,2]
[399428806,1766344325516,500.0,9.999e-05,2]
[399428807,1766344325609,500.0,9.999e-05,2]
[399428808,1766344325648,500.0,9.999e-05,2]
[399428809,1766344325686,500.0,9.999e-05,2]
[399428810,1766344325726,500.0,9.999e-05,2]
[399428811,1766344325771,500.0,9.999e-05,2]
[399428812,1766344325810,500.0,9.999e-05,2]
[399428813,1766344325848,500.0,9.999e-05,2]
[399428814,1766344325886,248.50413127,9.999e-05,2]
[399428815,1766344325910,251.49586873,9.999e-05,2]
[399428816,1766344325951,500.0,9.999e-05,2]
[399428817,1766344325994,500.0,9.999e-05,2]
[399428818,1766344326034,500.0,9.999e-05,2]
[399428819,1766344326079,500.0,9.999e-05,2]
[399428820,1766344326118,500.0,9.999e-05,2]
[399428821,1766344326157,500.0,9.999e-05,2]
[399428822,1766344326555,500.0,9.999e-05,2]
[399428823,1766344326595,500.0,9.999e-05,2]
[399428824,1766344326639,500.0,9.999e-05,2]
[399428825,1766344329351,151.0,0.00032876,31]
[399428826,1766344341181,500.0,9.999e-05,2]
[399428827,1766344348363,167.84538038,9.999e-05,2]
[399428830,1766344393097,9832.16461962,9.9e-05,2]
[399428831,1766344393119,10000.01,9.9e-05,2]
[399428832,1766344393140,10000.01,9.9e-05,2]
[399428833,1766344393161,3662.77908038,9.9e-05,2]
[399428834,1766344413549,10000.01,9.564e-05,2]
[399428835,1766344421977,-303.56768944,9.564e-05,2]
[399428836,1766344427111,-85.73505089,9.564e-05,2]
[399428837,1766344427174,-10000.01,9.564e-05,2]
[399428838,1766344427193,-10000.01,9.564e-05,2]
[399428839,1766344427409,-10000.01,9.564e-05,2]
[399428840,1766344427595,-10000.01,9.564e-05,2]
[399428842,1766344429024,-379.09618597,9.564e-05,2]
[399428844,1766344430901,-160.79287812,9.564e-05,2]
[399428847,1766344434256,-328.4,9.564e-05,2]
[399428849,1766344436612,-356.29842397,9.564e-05,2]
[399428851,1766344437998,-10000.01,9.564e-05,2]
[399428854,1766344438885,-267.10738813,9.564e-05,2]
[399428858,1766344441737,-297.28229917,9.563e-05,2]
[399428859,1766344444362,-2.71770083,9.563e-05,2]
[399428860,1766344444390,-151.94433463,9.564e-05,2]
[399428861,1766344445969,-305.75,9.564e-05,2]
[399428862,1766344448032,-283.31888554,9.564e-05,2]
[399428863,1766344450608,-165.34295162,9.564e-05,2]
[399428864,1766344451296,-10000.01,9.564e-05,2]
[399428865,1766344451569,-10000.01,9.564e-05,2]
[399428866,1766344451755,-10000.01,9.564e-05,2]
[399428867,1766344451958,-10000.01,9.564e-05,2]
[399428868,1766344452502,-392.94256692,9.564e-05,2]
[399428871,1766344454650,-293.07151983,9.564e-05,2]
[399428872,1766344456700,-280.23608459,9.564e-05,2]
[399428874,1766344458451,-278.1203723,9.564e-05,2]
[399428875,1766344459678,-10000.01,9.564e-05,2]
[399428876,1766344459919,-10000.01,9.564e-05,2]
[399428877,1766344460311,-300.0,9.564e-05,2]
[399428878,1766344463005,-151.0,9.561e-05,2]
[399428879,1766344463034,-296.70157603,9.564e-05,2]
[399428880,1766344465667,-269.4494774,9.564e-05,2]
[399428881,1766344467814,-177.50363396,9.564e-05,2]
[399428882,1766344469958,-167.68895809,9.564e-05,2]
[399428884,1766344471779,-10000.01,9.564e-05,2]
[399428885,1766344472267,-10000.01,9.564e-05,2]
[399428886,1766344472474,-10000.01,9.564e-05,2]
[399428887,1766344472616,-10000.01,9.564e-05,2]
[399428888,1766344472785,-10000.01,9.564e-05,2]
[399428889,1766344473567,-609.84158864,9.564e-05,2]
[399428890,1766344475744,-206.21678787,9.564e-05,2]
[399428891,1766344478505,-276.18542143,9.564e-05,2]
[399428892,1766344480307,-443.64321213,9.564e-05,2]
[399428893,1766344482210,-276.49582084,9.564e-05,2]
[399428894,1766344484313,-300.0,9.564e-05,2]
[399428895,1766344484747,-10000.01,9.564e-05,2]
[399428900,1766344498106,-276.49582084,9.564e-05,2]
[399428901,1766344498139,-9447.01835832,9.564e-05,2]
[399428902,1766344498305,-10000.01,9.564e-05,2]
[399428903,1766344498498,-10000.01,9.564e-05,2]
[399428904,1766344498676,-10000.01,9.564e-05,2]
[399428905,1766344498883,-10000.01,9.564e-05,2]
[399428906,1766344499047,-10000.01,9.564e-05,2]
[399428907,1766344499224,-10000.01,9.564e-05,2]
[399428910,1766344518828,-1200.0,9.563e-05,2]
[399428911,1766344518865,-150.0,9.563e-05,2]
[399428912,1766344518899,-300.0,9.563e-05,2]
[399428913,1766344518959,-6700.01,9.564e-05,2]
[399428914,1766344519062,-10000.01,9.564e-05,2]
[399428934,1766344527629,-10000.01,9.564e-05,2]
[399428935,1766344527847,-10000.01,9.564e-05,2]
[399428936,1766344528100,-10000.01,9.564e-05,2]
[399428937,1766344528272,-10000.01,9.564e-05,2]
[399428938,1766344528509,-10000.01,9.564e-05,2]
[399428941,1766344534167,-10000.01,9.564e-05,2]
[399428942,1766344534270,-10000.01,9.564e-05,2]
[399428943,1766344545393,-10000.01,9.564e-05,2]
[399428944,1766344545767,-10000.01,9.564e-05,2]
[399428945,1766344545990,-10000.01,9.564e-05,2]
[399428946,1766344546201,-10000.01,9.564e-05,2]
[399428947,1766344546402,-10000.01,9.564e-05,2]
[399428951,1766344553560,-10000.01,9.564e-05,2]
[399428952,1766344553814,-10000.01,9.564e-05,2]
[399428954,1766344562262,-300.0,9.563e-05,2]
[399428955,1766344562298,-9400.01,9.564e-05,2]
[399428956,1766344562508,-10000.01,9.564e-05,2]
[399428958,1766344562771,-500.0,9.563e-05,2]
[399428959,1766344562805,-9000.01,9.564e-05,2]
[399428960,1766344562976,-10000.01,9.564e-05,2]
[399428961,1766344563214,-10000.01,9.564e-05,2]
[399428962,1766344563405,-10000.01,9.564e-05,2]
[399429022,1766344586131,-500.0,9.563e-05,2]
[399429023,1766344586168,-497.94664342,9.563e-05,2]
[399429024,1766344586199,-250.0,9.564e-05,2]
[399429025,1766344586266,-7504.11671316,9.564e-05,2]
[399429026,1766344586295,-10000.01,9.564e-05,2]
[399429027,1766344586882,-10000.01,9.564e-05,2]
[399429029,1766344594718,-10000.01,9.564e-05,2]
[399429030,1766344594744,-10000.01,9.564e-05,2]
[399429031,1766344601783,-10000.01,9.564e-05,2]
[399429032,1766344602017,-10000.01,9.564e-05,2]
[399429033,1766344602228,-10000.01,9.564e-05,2]
[399429034,1766344610730,-10000.01,9.564e-05,2]
[399429036,1766344619907,-1268.43613732,9.564e-05,2]
[399429037,1766344619969,-7463.13772536,9.564e-05,2]
[399429038,1766344619983,-10000.01,9.564e-05,2]
[399429046,1766344633034,-300.0,9.563e-05,2]
[399429047,1766344633071,-9400.01,9.564e-05,2]
[399429048,1766344633216,-10000.01,9.564e-05,2]
[399429049,1766344633438,-10000.01,9.564e-05,2]
[399429050,1766344643255,-10000.01,9.564e-05,2]
[399429051,1766344643513,-10000.01,9.564e-05,2]
[399429052,1766344643707,-10000.01,9.564e-05,2]
[399429057,1766344649179,-10000.01,9.564e-05,2]
[399429058,1766344649566,-10000.01,9.564e-05,2]
[399429059,1766344649775,-10000.01,9.564e-05,2]
[399429060,1766344659574,-10000.01,9.564e-05,2]
[399429061,1766344659770,-10000.01,9.564e-05,2]
[399429062,1766344659935,-10000.01,9.564e-05,2]
[399429064,1766344676206,-1371.76071655,9.564e-05,2]
[399429065,1766344676230,-7256.4885669,9.564e-05,2]
[399429069,1766344699097,-150.0,9.563e-05,2]
[399429070,1766344699128,-297.53221707,9.563e-05,2]
[399429071,1766344699156,-303.10909246,9.563e-05,2]
[399429072,1766344699222,-8498.72738094,9.564e-05,2]
[399429073,1766344699408,-10000.01,9.564e-05,2]
[399429074,1766344699618,-10000.01,9.564e-05,2]
[399429075,1766344699846,-10000.01,9.564e-05,2]
[399429076,1766344704037,-500.0,9.563e-05,2]
[399429077,1766344704074,-500.0,9.563e-05,2]
[399429078,1766344704107,-500.0,9.563e-05,2]
[399429079,1766344704141,-500.0,9.563e-05,2]
[399429080,1766344704174,-500.0,9.563e-05,2]
[399429081,1766344704208,-500.0,9.563e-05,2]
[399429082,1766344704241,-500.0,9.563e-05,2]
[399429083,1766344704275,-500.0,9.563e-05,2]
[399429084,1766344704307,-500.0,9.563e-05,2]
[399429085,1766344704340,-500.0,9.563e-05,2]
[399429086,1766344704498,-0.01,9.563e-05,2]
[399429087,1766344704536,-499.99,9.563e-05,2]
[399429088,1766344704567,-500.0,9.563e-05,2]
[399429089,1766344704598,-500.0,9.563e-05,2]
[399429090,1766344704630,-500.0,9.563e-05,2]
[399429093,1766344704957,-500.0,9.563e-05,2]
[399429094,1766344705002,-500.0,9.563e-05,2]
[399429095,1766344705037,-500.0,9.563e-05,2]
[399429096,1766344705070,-500.0,9.563e-05,2]
[399429097,1766344705105,-500.0,9.563e-05,2]
[399429099,1766344705147,-500.0,9.563e-05,2]
[399429101,1766344705758,-0.03,9.563e-05,2]
[399429108,1766344734637,-423.52249745,9.563e-05,2]
[399429109,1766344734670,-499.97,9.563e-05,2]
[399429110,1766344734701,-500.0,9.563e-05,2]
[399429111,1766344734732,-500.0,9.563e-05,2]
[399429112,1766344734764,-568.55724108,9.563e-05,2]
[399429113,1766344734793,-500.0,9.563e-05,2]
[399429114,1766344734824,-500.0,9.563e-05,2]
[399429115,1766344734855,-500.0,9.563e-05,2]
[399429116,1766344734889,-500.0,9.563e-05,2]
[399429117,1766344734920,-500.0,9.563e-05,2]
[399429118,1766344735073,-15.91052294,9.563e-05,2]
[399429129,1766344750154,-484.08947706,9.563e-05,2]
[399429130,1766344750187,-500.0,9.563e-05,2]
[399429131,1766344750220,-500.0,9.563e-05,2]
[399429132,1766344750252,-500.0,9.563e-05,2]
[399429133,1766344750284,-500.0,9.563e-05,2]
[399429134,1766344750314,-500.0,9.563e-05,2]
[399429135,1766344750344,-500.0,9.563e-05,2]
[399429136,1766344750391,-500.0,9.563e-05,2]
[399429137,1766344750426,-500.0,9.563e-05,2]
[399429138,1766344750458,-500.0,9.563e-05,2]
[399429139,1766344750641,-31.83104588,9.563e-05,2]
[399429141,1766344771204,-468.16895412,9.563e-05,2]
[399429142,1766344771239,-500.0,9.563e-05,2]
[399429143,1766344771273,-500.0,9.563e-05,2]
[399429144,1766344771308,-500.0,9.563e-05,2]
[399429145,1766344771340,-500.0,9.563e-05,2]
[399429146,1766344771373,-500.0,9.563e-05,2]
[399429147,1766344771405,-568.55724108,9.563e-05,2]
[399429148,1766344771438,-500.0,9.563e-05,2]
[399429149,1766344771471,-500.0,9.563e-05,2]
[399429150,1766344771503,-426.5576096,9.563e-05,2]
[399429151,1766344771676,-73.4423904,9.563e-05,2]
[399429160,1766344802773,-300.0,9.562e-05,2]
[399429161,1766344802805,-300.0,9.562e-05,2]
[399429162,1766344802834,-1200.0,9.562e-05,2]
[399429163,1766344802864,-500.0,9.563e-05,2]
[399429164,1766344802900,-500.0,9.563e-05,2]
[399429165,1766344802934,-500.0,9.563e-05,2]
[399429166,1766344802965,-500.0,9.563e-05,2]
[399429167,1766344802995,-500.0,9.563e-05,2]
[399429168,1766344803026,-500.0,9.563e-05,2]
[399429169,1766344803972,-500.0,9.563e-05,2]
[399429170,1766344804005,-500.0,9.563e-05,2]
[399429171,1766344804038,-500.0,9.563e-05,2]
[399429172,1766344804073,-500.0,9.563e-05,2]
[399429173,1766344804109,-500.0,9.563e-05,2]
[399429174,1766344804143,-500.0,9.563e-05,2]
[399429175,1766344804179,-500.0,9.563e-05,2]
[399429176,1766344804215,-500.0,9.563e-05,2]
[399429177,1766344804248,-500.0,9.563e-05,2]
[399429178,1766344804283,-500.0,9.563e-05,2]
[399429179,1766344804563,-400.01,9.563e-05,2]
[399429180,1766344804576,-0.01,9.563e-05,2]
[399429185,1766344821156,-500.0,9.464e-05,2]
[399429186,1766344821187,-229.0,9.562e-05,2]
[399429187,1766344821217,-1757.16,9.563e-05,2]
[399429188,1766344821253,-99.98,9.563e-05,2]
[399429189,1766344821287,-500.0,9.563e-05,2]
[399429190,1766344821319,-500.0,9.563e-05,2]
[399429191,1766344821354,-500.0,9.563e-05,2]
[399429192,1766344821386,-500.0,9.563e-05,2]
[399429193,1766344821419,-327.73,9.563e-05,2]
[399429194,1766344821564,-172.27,9.563e-05,2]
[399429197,1766344837535,-500.0,9.563e-05,2]
[399429198,1766344837566,-500.0,9.563e-05,2]
[399429199,1766344837598,-500.0,9.563e-05,2]
[399429200,1766344837630,-500.0,9.563e-05,2]
[399429201,1766344837662,-500.0,9.563e-05,2]
[399429202,1766344837693,-500.0,9.563e-05,2]
[399429203,1766344837726,-500.0,9.563e-05,2]
[399429204,1766344837757,-500.0,9.563e-05,2]
[399429205,1766344837788,-519.4250075,9.563e-05,2]
[399429206,1766344837820,-461.159985,9.563e-05,2]
[399429207,1766344837960,-38.840015,9.563e-05,2]
[399429212,1766344870082,-150.0,9.562e-05,2]
[399429213,1766344870114,-300.0,9.562e-05,2]
[399429214,1766344870149,-501.65512545,9.563e-05,2]
[399429215,1766344870177,-1102.34063428,9.563e-05,2]
[399429216,1766344870207,-186.87974473,9.563e-05,2]
[399429217,1766344870235,-579.48252053,9.563e-05,2]
[399429218,1766344870269,-500.0,9.563e-05,2]
[399429219,1766344870302,-500.0,9.563e-05,2]
[399429220,1766344870334,-500.0,9.563e-05,2]
[399429221,1766344870369,-500.0,9.563e-05,2]
[399429222,1766344870523,-359.29395002,9.563e-05,2]
[399429235,1766344897048,718.8,0.00035616,40]
[399429238,1766344932820,174.17489767,0.00035616,30]
[399429239,1766344933337,1514.45233514,0.0003561,30]
[399429240,1766344935927,500.0,0.00035616,30]
[399429348,1766344978540,-431.9763,9.464e-05,2]
[399429349,1766344978570,-300.0,9.562e-05,2]
[399429350,1766344978598,-250.0,9.563e-05,2]
[399429351,1766344978628,-500.0,9.563e-05,2]
[399429352,1766344978664,-140.70604998,9.563e-05,2]
[399429353,1766344978697,-500.0,9.563e-05,2]
[399429354,1766344978730,-500.0,9.563e-05,2]
[399429355,1766344978760,-500.0,9.563e-05,2]
[399429356,1766344978789,-501.34567294,9.563e-05,2]
[399429357,1766344978822,-500.0,9.563e-05,2]
[399429358,1766344978853,-500.0,9.563e-05,2]
[399429359,1766344978887,-218.68956571,9.563e-05,2]
[399429360,1766344979071,-314.57482274,9.563e-05,2]
[399429361,1766344999809,-300.0,9.562e-05,2]
[399429362,1766344999837,-1200.0,9.562e-05,2]
[399429363,1766344999865,-250.0,9.563e-05,2]
[399429364,1766344999897,-185.42517726,9.563e-05,2]
[399429365,1766344999927,-500.0,9.563e-05,2]
[399429366,1766344999957,-500.0,9.563e-05,2]
[399429367,1766344999987,-500.0,9.563e-05,2]
[399429368,1766345000018,-500.0,9.563e-05,2]
[399429369,1766345000049,-500.0,9.563e-05,2]
[399429370,1766345000079,-500.0,9.563e-05,2]
[399429371,1766345000262,-129.15964548,9.563e-05,2]
[399429372,1766345017654,-10000.01,9.464e-05,2]
[399429373,1766345017773,-10000.01,9.464e-05,2]
[399429374,1766345017872,-10000.01,9.464e-05,2]
[399429375,1766345018010,-10000.01,9.464e-05,2]
[399429376,1766345018691,-10000.01,9.464e-05,2]
[399429379,1766345052611,-4652.96743,9.464e-05,2]
[399429380,1766345052649,-694.07514,9.464e-05,2]
[399429382,1766345072768,-694.07514,9.464e-05,2]
[399429383,1766345072791,-8611.85972,9.464e-05,2]
[399429386,1766345118937,425.20842292,9e-05,2]
[399429387,1766345118961,2765.20755634,9e-05,2]
[399429391,1766345121972,-500.0,9.463e-05,2]
[399429392,1766345122003,-300.0,9.559e-05,2]
[399429393,1766345122033,-300.0,9.559e-05,2]
[399429394,1766345122062,-1200.0,9.559e-05,2]
[399429395,1766345122092,-150.0,9.56e-05,2]
[399429396,1766345122124,-208.27255195,9.56e-05,2]
[399429397,1766345122164,-500.0,9.56e-05,2]
[399429398,1766345122199,-500.0,9.56e-05,2]
[399429399,1766345122231,-500.0,9.56e-05,2]
[399429400,1766345122262,-500.0,9.56e-05,2]
[399429401,1766345122291,-183.4648961,9.56e-05,2]
[399429402,1766345122480,-316.5351039,9.56e-05,2]
[399429404,1766345130027,-500.0,9.56e-05,2]
[399429405,1766345130055,-500.0,9.56e-05,2]
[399429406,1766345130083,-500.0,9.56e-05,2]
[399429407,1766345130110,-500.0,9.56e-05,2]
[399429408,1766345130138,-500.0,9.56e-05,2]
[399429409,1766345130166,-479.21656033,9.56e-05,2]
[399429410,1766345130200,-500.0,9.56e-05,2]
[399429411,1766345130229,-500.0,9.56e-05,2]
[399429412,1766345130258,-241.79350466,9.56e-05,2]
[399429413,1766345130286,-500.0,9.56e-05,2]
[399429414,1766345130313,-32.34110874,9.56e-05,2]
[399429415,1766345130479,-493.30765254,9.56e-05,2]
[399429417,1766345145930,164.83,8.279e-05,2]
[399429418,1766345146134,164.83,9.313e-05,2]
[399429419,1766345147315,-223.94209852,9.56e-05,2]
[399429420,1766345151345,-195.26350297,9.56e-05,2]
[399429423,1766345155277,-77.49489459,9.56e-05,2]
[399429424,1766345155299,-144.16719254,9.56e-05,2]
[399429426,1766345156639,1769.0,0.00035616,30]
[399429427,1766345158015,-344.13739356,9.56e-05,2]
[399429428,1766345166091,-419.20560149,9.464e-05,2]
[399429429,1766345166173,-9161.59879702,9.464e-05,2]
[399429430,1766345166441,-10000.01,9.464e-05,2]
[399429431,1766345166773,-4697.14860298,9.464e-05,2]
[399429432,1766345166805,-300.0,9.559e-05,2]
[399429433,1766345166906,-5.71279404,9.56e-05,2]
[399429434,1766345167120,-5.98261986,9.56e-05,2]
[399429435,1766345167150,-500.0,9.56e-05,2]
[399429436,1766345167180,-500.0,9.56e-05,2]
[399429437,1766345167213,-500.0,9.56e-05,2]
[399429438,1766345167244,-500.0,9.56e-05,2]
[399429439,1766345167274,-500.0,9.56e-05,2]
[399429440,1766345167305,-500.0,9.56e-05,2]
[399429441,1766345167336,-500.0,9.56e-05,2]
[399429442,1766345167366,-500.0,9.56e-05,2]
[399429443,1766345167397,-500.0,9.56e-05,2]
[399429444,1766345167437,-488.04476028,9.56e-05,2]
[399429445,1766345168593,-11.95523972,9.56e-05,2]
[399429446,1766345172577,-2500.0,9.464e-05,2]
[399429447,1766345172606,-500.0,9.56e-05,2]
[399429448,1766345172634,-500.0,9.56e-05,2]
[399429449,1766345172663,-500.0,9.56e-05,2]
[399429450,1766345172691,-500.0,9.56e-05,2]
[399429451,1766345172721,-500.0,9.56e-05,2]
[399429452,1766345172818,-0.01,9.56e-05,2]
[399429454,1766345191178,-499.99,9.56e-05,2]
[399429455,1766345191211,-500.0,9.56e-05,2]
[399429456,1766345191240,-250.08009399,9.56e-05,2]
[399429457,1766345191271,-171.50821732,9.56e-05,2]
[399429458,1766345191301,-338.49302527,9.56e-05,2]
[399429459,1766345191331,-246.50623409,9.56e-05,2]
[399429460,1766345191451,-5986.85485866,9.561e-05,2]
[399429465,1766345204235,-221.85561068,9.56e-05,2]
[399429466,1766345204266,-500.0,9.56e-05,2]
[399429467,1766345204296,-304.64372274,9.56e-05,2]
[399429468,1766345204324,-500.0,9.56e-05,2]
[399429469,1766345204352,-164.35739559,9.56e-05,2]
[399429470,1766345204380,-225.07208459,9.56e-05,2]
[399429471,1766345204478,-6168.1523728,9.561e-05,2]
[399429472,1766345215838,-346.076,9.464e-05,2]
[399429473,1766345215874,-9307.858,9.561e-05,2]
[399429476,1766345225933,250.0,0.00035616,30]
[399429477,1766345226542,250.0,0.00035616,30]
[399429478,1766345227125,250.0,0.00035616,30]
[399429479,1766345227740,250.0,0.00035616,30]
[399429480,1766345228065,-163.3877,9.464e-05,2]
[399429481,1766345228097,-300.0,9.56e-05,2]
[399429482,1766345228130,-150.0,9.56e-05,2]
[399429483,1766345228235,-8773.2346,9.561e-05,2]
[399429484,1766345228364,250.0,0.00035616,30]
[399429485,1766345228979,250.0,0.00035616,30]
[399429486,1766345229565,250.0,0.00035616,30]
[399429487,1766345229754,500.0,0.00035616,30]
[399429488,1766345230609,250.0,0.00035616,30]
[399429489,1766345230697,500.0,0.00035616,30]
[399429490,1766345230970,500.0,0.00035616,30]
[399429491,1766345231612,500.0,0.00035616,30]
[399429492,1766345232190,500.0,0.00035616,30]
[399429493,1766345232789,500.0,0.00035616,30]
[399429494,1766345233808,500.0,0.00035616,30]
[399429495,1766345234017,500.0,0.00035616,30]
[399429496,1766345234651,500.0,0.00035616,30]
[399429497,1766345235267,500.0,0.00035616,30]
[399429498,1766345242588,-856.56588952,9.56e-05,2]
[399429499,1766345242622,-856.56588952,9.56e-05,2]
[399429500,1766345242656,-856.56588952,9.56e-05,2]
[399429501,1766345242689,-856.56588952,9.56e-05,2]
[399429502,1766345242721,-856.56588952,9.56e-05,2]
[399429503,1766345242753,-577.78521528,9.56e-05,2]
[399429504,1766345242841,-278.78067424,9.56e-05,2]
[399429507,1766345258380,-856.56588952,9.56e-05,2]
[399429508,1766345258415,-856.56588952,9.56e-05,2]
[399429509,1766345258449,-856.56588952,9.56e-05,2]
[399429510,1766345258485,-856.56588952,9.56e-05,2]
[399429511,1766345258520,-856.56588952,9.56e-05,2]
[399429512,1766345258556,-577.78521528,9.56e-05,2]
[399429513,1766345258655,-278.78067424,9.56e-05,2]
[399429515,1766345261223,1760.21738539,5.032e-05,2]
[399429516,1766345261246,3863.51261461,5.032e-05,2]